Cogmind - Beta 16 *** ADVENTURER MODE // 2025.12.30 @ 00:50:06 Player: wobb Result: Self-destructed Performance ------------- Evolutions (1) 500 Regions Visited (3) 600 Robots Destroyed (8) 40 Value Destroyed (87) 87 Prototype IDs (0) 0 Alien Tech Used (0) 0 Bonus (0) 0 TOTAL SCORE: 1227 Bonus ------- None Cogmind --------- Core Integrity 168/400 Matter 266/300 Energy 250/250 System Corruption 1% Temperature Cool (0) Movement Rolling (90) Location -9/Storage Parts ------- > --- POWER (1) -------- Ion Engine > --- PROPULSION (4) --- Armored Wheel > --- UTILITY (2) ------ Improved Terrain Scanner Seismic Detector > --- WEAPON (2) ------- (None) > --- INVENTORY (5) ---- Light Ion Engine Sensor Array Terrain Scan Processor Small Laser Peak State ------------ > --- POWER ------------ Ion Engine > --- PROPULSION ------- Armored Wheel Armored Wheel Armored Wheel Armored Wheel > --- UTILITY ---------- Improved Terrain Scanner Seismic Detector > --- WEAPON ----------- Medium Laser Mining Laser > --- INVENTORY -------- Light Ion Engine Sensor Array Small Laser [Rating: 15] Favorites ----------- Power Ion Engine Engine Ion Engine Propulsion Aluminum Leg Leg Aluminum Leg Wheel Armored Wheel Utility Improved Terrain Scanner Device Improved Terrain Scanner Storage Small Storage Unit Weapon Medium Laser Energy Gun Medium Laser Special Weapon Mining Laser Build | -11 -10 -9 -9 ------- Run | Yrd Mat Mat Sto Slots Evolved 2 | . . 2 . Power . | . . . . Propulsion 2 | . . 2 . Utility . | . . . . Weapon . | . . . . Parts Attached 13 | 6 5 2 . Power 1 | 1 . . . Engine 1 | 1 . . . Core . | . . . . Reactor . | . . . . Propulsion 6 | 2 2 2 . Treads . | . . . . Leg 2 | 2 . . . Wheel 4 | . 2 2 . Hover . | . . . . Flight . | . . . . Utility 3 | 1 2 . . Device 2 | . 2 . . Storage 1 | 1 . . . Processor . | . . . . Hackware . | . . . . Protection . | . . . . Artifact . | . . . . Weapon 3 | 2 1 . . Energy Gun 2 | 2 . . . Energy Cannon . | . . . . Ballistic Gun . | . . . . Ballistic Cannon . | . . . . Launcher . | . . . . Special Weapon 1 | . 1 . . Impact Weapon . | . . . . Slashing Weapon . | . . . . Piercing Weapon . | . . . . Special Melee Weapon . | . . . . Unidentified Prototypes . | . . . . Parts Lost 5 | . . . 5 Power . | . . . . Propulsion 3 | . . . 3 Utility . | . . . . Weapon 2 | . . . 2 Highest Loss Streak 5 | . . . 5 To Critical Strikes . | . . . . Average Backups 3 | 3 3 3 4 Power . | . 1 1 1 Propulsion . | 1 . . . Utility 1 | . . 1 2 Weapon . | . 1 1 1 Tool/Special . | . . . . Unused Backups 7 | 1 3 . 3 Power 1 | . . . 1 Propulsion 4 | 1 3 . . Utility 2 | . . . 2 Weapon . | . . . . Tool/Special . | . . . . Average Slot Usage (%) 98 | . 100 99 84 Engine 12 | . 14 11 11 Leg 16 | . 27 . . Wheel 16 | . . 43 36 Device 24 | . 26 22 22 Energy Gun 14 | . 17 11 7 Special Weapon 10 | . 10 11 6 Peak Build Rating 15 | 6 11 15 15 Average Rating 10 | 5 9 14 12 On Entrance 8 | . 6 11 15 Avg Prop Armor Cover (%) . | . . . . Naked Turns . | . . . . Heaviest Build 14 | 13 14 10 10 Greatest Support 48 | 20 24 48 48 Greatest Overweight (x) . | . . . . Average Overweight (x) . | . . . . Largest Inventory Capacity 8 | 8 8 5 5 Average Capacity 5 | 6 5 5 5 Most Carried 7 | 7 6 4 4 Average Carried 3 | 3 3 3 4 Final Capacity 8 | 8 5 5 5 Final Carried 6 | 6 5 4 4 Class Distribution -------------------- 100% | Mutant Dominant Class ---------------- Mutant | -10/Materials Mutant | -9/Materials Mutant | -9/Storage Resources | -11 -10 -9 -9 ----------- Run | Yrd Mat Mat Sto Matter Collected 271 | 260 . . 11 Remotely . | . . . . Salvage Created 197 | 186 . . 11 Parts 19 | 17 . . 2 Haulers Intercepted . | . . . . Recyclers Shooed . | . . . . Parts Field Recycled . | . . . . Retrieved Matter . | . . . . Parts Self-Destructed . | . . . . Prevented . | . . . . Parts Restored . | . . . . Kills | -11 -10 -9 -9 ------- Run | Yrd Mat Mat Sto Combat Hostiles Destroyed 1 | . . . 1 Cannons 1 | . . . 1 Classes Destroyed 4 | 3 . . 1 Worker 1 | 1 . . . Tunneler 5 | 5 . . . Recycler 1 | 1 . . . Sentry 1 | . . . 1 Best Kill Streak 2 | 2 . . 1 Combat Bots Only 1 | . . . 1 Max Kills in Single Turn 1 | 1 . . 1 Gunslinging . | . . . . Exploded . | . . . . Melee . | . . . . Uniques/NPCs Destroyed . | . . . . Combat | -11 -10 -9 -9 -------- Run | Yrd Mat Mat Sto Hostile Shots Fired 45 | . . 5 40 Missed 11 | . . 2 9 Hits 34 | . . 3 31 Projectile 34 | . . 3 31 Critical Strikes 1 | . . . 1 Damage Taken 817 | . . 35 782 Core 232 | . . 35 197 Absorbed by Shields . | . . . . Ignored by Resistances 101 | . . 11 90 Core Remaining (%) 100 | 100 100 . . Volleys Fired 30 | 14 1 6 9 Largest 2 | 2 1 1 1 Hottest 100 | 90 100 100 100 Shots Fired 44 | 28 1 6 9 Gun 31 | 28 . . 3 Cannon . | . . . . Launcher . | . . . . Special 13 | . 1 6 6 Kinetic . | . . . . Thermal 44 | 28 1 6 9 Explosive . | . . . . Electromagnetic . | . . . . Robot Hit Streak 15 | 15 . . 14 Robot Miss Streak 1 | 1 . . . Penetration Max . | . . . . Secondary Targets . | . . . . Shots Hit Robots 29 | 24 . . 5 Core Hits 10 | 8 . . 2 Critical Kills . | . . . . Critical Parts Destroyed . | . . . . Critical Strikes 2 | 2 . . . Burn 2 | 2 . . . Melee Attacks . | . . . . Impact . | . . . . Slashing . | . . . . Piercing . | . . . . Sneak Attacks . | . . . . Combat Hostiles . | . . . . Follow-up Attacks . | . . . . Damage Inflicted 366 | 282 . . 84 Guns 318 | 282 . . 36 Cannons . | . . . . Explosions . | . . . . Melee . | . . . . Ramming . | . . . . Kinetic . | . . . . Thermal 366 | 282 . . 84 Explosive . | . . . . Electromagnetic . | . . . . Impact . | . . . . Slashing . | . . . . Piercing . | . . . . Highest Corruption 1 | . . . 1 Average Corruption 1 | . . . 1 Corruption Purged . | . . . . Corruption Blocked . | . . . . Overload Shots . | . . . . Overflow Damage . | . . . . Projectiles . | . . . . Explosions . | . . . . Melee . | . . . . Knockbacks . | . . . . Impact . | . . . . Kinetic . | . . . . Secondary . | . . . . Self-Inflicted Damage . | . . . . Shots . | . . . . Rammed . | . . . . Targets Rammed . | . . . . Kicked . | . . . . Crushed . | . . . . Highest Temperature 103 | 90 20 8 103 Average Temperature 28 | 35 12 5 35 Received Heat Transfer 207 | . . . 207 Siege Activations . | . . . . Martial Activations . | . . . . Shielding Activations . | . . . . Robots Disrupted . | . . . . Combat Hostiles . | . . . . Robots Corrupted . | . . . . Combat Hostiles . | . . . . Parts Fried . | . . . . Impact Corruptions . | . . . . Robots Melted . | . . . . Combat Hostiles . | . . . . Parts Melted . | . . . . Heat Transferred 1103 | 892 . . 211 Parts Sabotaged . | . . . . Parts Stolen . | . . . . Parts Stripped . | . . . . Power Chain Reactions . | . . . . Alert | -11 -10 -9 -9 ------- Run | Yrd Mat Mat Sto Maximum Alert Level . | . . . . Low Security (%) 100 | 100 100 100 100 Level 1 . | . . . . Level 2 . | . . . . Level 3 . | . . . . Level 4 . | . . . . Level 5 . | . . . . High Security . | . . . . Max Security . | . . . . Peak Influence 76 | 10 1 2 76 Initial . | . . . . Average 1 | 1 . . 16 Influence Increases 118 | 35 1 5 77 Destroy 0b10 Robot/C 20 | . . . 20 Destroy 0b10 Robot/NC 35 | 35 . . . Destroy Leader 10 | . . . 10 Destroy Structure 8 | . 1 5 2 Lose Combat Pursuer 45 | . . . 45 Influence Decreases 118 | 35 1 5 77 Time Decay 68 | 35 1 5 27 Lost Part 50 | . . . 50 Squads Dispatched 1 | . 1 . . Investigation 1 | . 1 . . Extermination . | . . . . Reinforcement . | . . . . Assault . | . . . . Garrison . | . . . . Intercept . | . . . . Searches Triggered . | . . . . Construction Impeded . | . . . . Haulers Reinforced . | . . . . Active Scanning Responses . | . . . . Cargo Convoy Interrupts . | . . . . Stealth | -11 -10 -9 -9 --------- Run | Yrd Mat Mat Sto Distress Signals 3 | . . 1 2 Communications Jammed . | . . . . Distress Signals . | . . . . Times Spotted 15 | . 1 4 10 Peak Tracking Total 8 | . 1 5 8 Tactical Retreats 1 | . . . 1 Traps | -11 -10 -9 -9 ------- Run | Yrd Mat Mat Sto Traps Triggered 1 | . 1 . . Indirectly . | . . . . Trap Hack Attempts . | . . . . Triggered . | . . . . Disarmed . | . . . . Reprogrammed . | . . . . Reused . | . . . . Traps Extracted . | . . . . Installed . | . . . . Triggered . | . . . . Machines | -11 -10 -9 -9 ---------- Run | Yrd Mat Mat Sto Machines Disabled . | . . . . Max in Single Turn . | . . . . Machines Repaired . | . . . . Machines Dismantled . | . . . . Machines Sabotaged . | . . . . Overloaded Fab Kills . | . . . . Hacking | -11 -10 -9 -9 --------- Run | Yrd Mat Mat Sto Machines Accessed 1 | . . 1 . Terminals 1 | . . 1 . Fabricators . | . . . . Repair Stations . | . . . . Recycling Units . | . . . . Scanalyzers . | . . . . Garrison Access . | . . . . Total Hacks 2 | . . 2 . Successful . | . . . . Failed 2 | . . 2 . Catastrophic . | . . . . Database Lockouts . | . . . . Manual 2 | . . 2 . Terminals 2 | . . 2 . Fabricators . | . . . . Repair Stations . | . . . . Recycling Units . | . . . . Scanalyzers . | . . . . Garrison Access . | . . . . Terminal Hacks . | . . . . Fabricator Hacks . | . . . . Repair Station Hacks . | . . . . Recycling Unit Hacks . | . . . . Scanalyzer . | . . . . Garrison Access Hacks . | . . . . Unauthorized Hacks . | . . . . Terminals . | . . . . Fabricators . | . . . . Repair Stations . | . . . . Recycling Units . | . . . . Scanalyzers . | . . . . Garrison Access . | . . . . Data Cores Recovered . | . . . . Used . | . . . . Hacking Detections 1 | . . 1 . Full Trace Events . | . . . . Feedback Events . | . . . . Feedback Blocked . | . . . . Robot Schematics Acquired . | . . . . Robots Built . | . . . . Authchips . | . . . . Time . | . . . . Total Robot Build Rating . | . . . . Part Schematics Acquired . | . . . . Parts Built . | . . . . Authchips . | . . . . Time . | . . . . Total Part Build Rating . | . . . . Part Studies Acquired . | . . . . Parts Repaired . | . . . . Time . | . . . . Parts Recycled . | . . . . Recycled Matter . | . . . . Retrieved Matter . | . . . . Retrieved Components . | . . . . Parts Scanalyzed . | . . . . Part Schematics Acquired . | . . . . Parts Damaged . | . . . . Bothacking | -11 -10 -9 -9 ------------ Run | Yrd Mat Mat Sto Used RIF Installer . | . . . . Robots Hacked . | . . . . Non-combat . | . . . . Combat . | . . . . Robot Hacks Applied . | . . . . Relay Couplers Released . | . . . . Fabnet Peak Effective % . | . . . . Robots Rewired . | . . . . Allies Hacked . | . . . . Hacks Repelled . | . . . . Allies | -11 -10 -9 -9 -------- Run | Yrd Mat Mat Sto Total Allies . | . . . . Largest Group . | . . . . Highest-Rated Group . | . . . . Highest-Rated Ally . | . . . . Total Orders . | . . . . Ally Attacks . | . . . . Total Damage . | . . . . Kills . | . . . . Allies Corrupted . | . . . . Allies Melted . | . . . . Intel | -11 -10 -9 -9 ------- Run | Yrd Mat Mat Sto Active Infowar (turns) 1157 | . 709 339 109 Terrain 1157 | . 709 339 109 Seismic 1094 | . 646 339 109 Robot Analysis Total . | . . . . Derelict Logs Recovered . | . . . . Drone Launches . | . . . . Drone Recoveries . | . . . . Exploration | -11 -10 -9 -9 ------------- Run | Yrd Mat Mat Sto Turns Passed 1385 | 228 709 339 109 Spaces Moved 461 | 146 150 78 87 Core 12 | 12 . . . Treads . | . . . . Legs 278 | 134 144 . . Wheels 171 | . 6 78 87 Hover . | . . . . Flight . | . . . . Fastest Speed 50 | 50 90 90 90 Average Speed 107 | 114 118 90 90 Slowest Speed 120 | 120 120 90 90 Overloaded Moves . | . . . . Propulsion Burnouts . | . . . . Robots Hopped . | . . . . Potential Cave-ins . | . . . . Cave-ins Triggered 2 | . . . 2 Exploration Rate (%) 16 | 8 29 11 17 Regions Visited 3 Branch Regions 1 Pre-discovered Areas . | . . . . Known Exits Taken . | . . . . Unknown Exits Taken 3 | 1 1 1 . Scrap Searched . | . . . . Spaces Dug 11 | . 1 6 4 Terrain Destroyed 11 | . 1 6 4 Melee . | . . . . Projectile 11 | . 1 6 4 AOE . | . . . . Terrain Rammed . | . . . . Walls Destroyed . | . . . . Machines Disabled . | . . . . Actions | -11 -10 -9 -9 --------- Run | Yrd Mat Mat Sto Total 1284 | 179 681 328 96 Wait 755 | . 513 242 . Move 458 | 145 149 77 87 Hop . | . . . . Pick Up 20 | 13 6 1 . Fast Attach . | . . . . Attach 13 | 6 5 2 . Detach 1 | . 1 . . Swap . | . . . . Drop 7 | 1 6 . . Fire 30 | 14 1 6 9 Melee . | . . . . Ram . | . . . . Kick . | . . . . Crush . | . . . . Escape Stasis . | . . . . Rewire . | . . . . Trap . | . . . . Miscellaneous . | . . . . Route ------- -11/Scrapyard -10/Materials -9/Materials -9/Storage History --------- Turn | Location | Event 4 | -11/Scrapyard | Discovered new exit (range 16) 229 | -11/Scrapyard | Entered Materials 313 | -10/Materials | Build established: Mutant 904 | -10/Materials | Discovered new exit (range 16) 938 | -10/Materials | Entered another Materials area 938 | -9/Materials | Evolved 2 slots: Propulsion x2 1238 | -9/Materials | Discovered new exit (range 16) 1277 | -9/Materials | Entered Storage 1336 | -9/Storage | Crushed by falling debris 1343 | -9/Storage | Crushed by falling debris 1352 | -9/Storage | Core integrity fell below 50% 1386 | -9/Storage | Self-destructed Last Messages --------------- GOAL=ESCAPE 01333_ The unstable cave ceiling collapses. 01334_ Y-45 Defender destroyed. 01336_ The unstable cave ceiling collapses. 01336_ Crushed by falling debris. 01336_ Mining Laser destroyed. 01336_ System corrupted by crushing effect (+1). 01336_ Lgt. Armor Plating crushed. 01337_ Acquired 11 matter. 01343_ The unstable cave ceiling collapses. 01343_ Crushed by falling debris. 01343_ Med. Laser destroyed. 01349_ Arm. Wheel destroyed. 01349_ R-06 Scavenger collects Lgt. Treads. 01353_ Arm. Wheel destroyed. 01353_ W-16 Scout distress signal alerts nearby ally. 01373_ Arm. Wheel destroyed. 01376_ Critical hit (Burn: +37). 01379_ K-01 Serf cleans the Transfer Shaft. Map ----- +----------------------------------------------------+ | ?????????????????????????????????????????????????? | | ?????????????????????????????????????????????????? | | ?????????????????????????????????????????????????? | | ?????????????????????????????????????????????????? | | ?????????????????????????????????????????????????? | | ?????????????????????????????????????????????????? | | ?????????????????????????????????????????????????? | | ?????????????????????????????????????????????????? | | ?????????????????????????????????????????????????? | | ?????????????????????????????????????????????????? | | ?????????????????????????????????????????????????? | | ?????????????????????????????"???????????????????? | | ?????????????????????????????????????????????????? | | ?????????????????????????????????????#???????????? | | ?????????????????????????????????????????????????? | | ?????????????????????????????????????????????????? | | ?????????????????????????????????????????????????? | | ?????????????????????????????????? ??????????????? | | ?????????????????????????????????????????????????? | | ????????????#????????????????????????????????????? | | ???????????????????#?????????????????????????????? | | ??#??????###########/#######?????????????????????? | | ????????## # #?????????????????????? | | ????????# """ /Y""" +?????????????????????? | | ????????## "T # """ #?????????????????????? | | ?????????# """ # """ @ #?????????????????????? | | ?????????# """ # #?????????????????????? | | ?????????# """ # """ #?????????????????????? | | ?????????# """ # """ +?????????????????????? | | ??????#??# #k""" #?????????????????????? | | ##############/##### #?????????????????????? | | #??# #?????????????????????? | | ^ #??? #?????????????????????? | | #??### #####?????????????????????? | | #"###############????##??????????????????????????? | | ?????????????????????????????????????????????????? | | ?????????????#???????????????????????????????????? | | ???????#?????????????????????????????????????????? | | ???????????#?????????????????????????????????????? | | ?????????????????????????????????????????????????? | | ?????????????????????????????????????????????????? | | ?????????????????????????????????????????????????? | | ?? ???????????#??????????????????????????????????? | | ?? ??????????????????????????????????????????????? | | ?????????????????????????????????????????????????? | | ?????????????????????????????????????????????????? | | ?????????????????????????????????????????????????? | | ?????????????????????????????????????????????????? | | ?????????????????????????????????????????????????? | | ?????????????????????????????????????????????????? | +----------------------------------------------------+ Best States ------------- Heat Dissipation 28 Energy Generation 10 Energy Capacity 250 Matter Stores 300 Matter Capacity 300 Sight Range 16 Terrain Scan Range 16 Terrain Scan Density 10 Resistance: KI 20 Resistance: TH 20 Resistance: EX 20 Resistance: EM 20 Resistance: I 20 Resistance: S 20 Resistance: P 20 Evasion (%) 55 Offensive Hacking 10 Item Schematics ----------------- None Robot Schematics ------------------ None Fabricated ------------ Nothing Repaired ---------- Nothing Studied --------- None Alien Tech Used ----------------- None Achievements -------------- None Challenges ------------ None Game ------ Seed CarbideCannonTendrils Manual? 0 Play Time 00:17:36 Cumulative 34.8 hours Start 2025.12.29 @ 23:58:29 End 2025.12.30 @ 00:50:06 Sessions 1 Manual Loads 0 Difficulty Adventurer Special Mode None Game No. 20 Rogue 5 Adventurer 8 Explorer 7 Win Type - Total 1 Types 1/0/0/0/0/0/0/0/0/0 Lore% 14 Gallery% 26 Achievement% 16 Wizard Run 0 Options --------- Layout 1 ASCII 0 Keyboard 0 Movement Mouse Keybinds 0 Fullscreen 1 Font 24/Smallcaps Map View 50x40 Zoom Use 0% Tactical HUD 1 Map Filters NONE Filters NONE Steam 1 RUN: aac7eff9-75cc-4e31-96d9-040536bb2fb4